fUSD/lending_fUSD_20260205
["ID","MTS","AMOUNT","RATE_DAILY","PERIOD"]
[404564430,1770295842213,-301.1433787,0.00017989,3]
[404564431,1770295842223,-250.0,0.00017989,3]
[404564432,1770295842232,-2000.0,0.00017989,3]
[404564433,1770295842242,-250.0,0.00017989,3]
[404564434,1770295842255,-250.0,0.00017989,3]
[404564435,1770295842264,-250.0,0.00017989,3]
[404564436,1770295842274,-250.0,0.00017989,3]
[404564437,1770295842283,-250.0,0.00017989,3]
[404564438,1770295842292,-250.0,0.00017989,3]
[404564439,1770295842301,-250.0,0.00017989,3]
[404564440,1770295842309,-250.0,0.00017989,3]
[404564441,1770295842318,-250.0,0.00017989,3]
[404564442,1770295842328,-500.0,0.00017989,3]
[404564443,1770295842338,-250.0,0.00017989,3]
[404564444,1770295842348,-500.0,0.00017989,3]
[404564445,1770295842357,-250.0,0.00017989,3]
[404564446,1770295842367,-500.0,0.00017989,3]
[404564447,1770295842376,-250.0,0.00017989,3]
[404564448,1770295842385,-200.0,0.00017989,3]
[404564449,1770295842395,-500.0,0.00017989,3]
[404564450,1770295842403,-200.0,0.00017989,3]
[404564451,1770295842414,-500.0,0.00017989,3]
[404564452,1770295842423,-200.0,0.00017989,3]
[404564453,1770295842432,-500.0,0.00017989,3]
[404564454,1770295842442,-200.0,0.00017989,3]
[404564455,1770295842451,-502.94499964,0.00017989,3]
[404564456,1770295842465,-200.0,0.00017989,3]
[404564457,1770295842474,-200.0,0.00017989,3]
[404564458,1770295842484,-250.0,0.00017989,3]
[404564459,1770295842494,-200.0,0.00017989,3]
[404564460,1770295842508,-209.40437684,0.00017989,3]
[404564461,1770295842518,-200.0,0.00017989,3]
[404564462,1770295842528,-250.0,0.00017989,3]
[404564463,1770295842538,-217.15233878,0.00017989,3]
[404564464,1770295842549,-200.0,0.00017989,3]
[404564465,1770295842559,-200.0,0.00017989,3]
[404564466,1770295842568,-250.0,0.00017989,3]
[404564467,1770295842577,-225.18697532,0.00017989,3]
[404564468,1770295842585,-200.0,0.00017989,3]
[404564469,1770295842594,-200.0,0.00017989,3]
[404564470,1770295842603,-199.92628631,0.00017989,3]
[404564471,1770295842612,-233.51889341,0.00017989,3]
[404564472,1770295842622,-200.0,0.00017989,3]
[404564473,1770295842632,-200.0,0.00017989,3]
[404564474,1770295842642,-242.15909246,0.00017989,3]
[404564475,1770295842652,-200.0,0.00017989,3]
[404564476,1770295842662,-200.0,0.00017989,3]
[404564477,1770295842672,-338.91861782,0.00017989,3]
[404564478,1770295842682,-251.11897888,0.00017989,3]
[404564479,1770295842692,-200.0,0.00017989,3]
[404564480,1770295842702,-260.4103811,0.00017989,3]
[404564481,1770295842712,-200.0,0.00017989,3]
[404564482,1770295842721,-270.0455652,0.00017989,3]
[404564483,1770295842731,-200.0,0.00017989,3]
[404564484,1770295842740,-280.03725112,0.00017989,3]
[404564485,1770295842753,-200.0,0.00017989,3]
[404564486,1770295842763,-200.0,0.00017989,3]
[404564487,1770295842773,-500.0,0.00017989,3]
[404564488,1770295842782,-290.39862941,0.00017989,3]
[404564489,1770295842792,-200.0,0.00017989,3]
[404564490,1770295842802,-500.0,0.00017989,3]
[404564491,1770295842811,-301.1433787,0.00017989,3]
[404564492,1770295842822,-200.0,0.00017989,3]
[404564493,1770295842831,-500.0,0.00017989,3]
[404564494,1770295842841,-200.0,0.00017989,3]
[404564495,1770295842850,-500.0,0.00017989,3]
[404564496,1770295842860,-200.0,0.00017989,3]
[404564497,1770295842870,-500.0,0.00017989,3]
[404564498,1770295842879,-200.0,0.00017989,3]
[404564499,1770295842889,-500.0,0.00017989,3]
[404564500,1770295842899,-500.0,0.00017989,3]
[404564501,1770295842909,-500.0,0.00017989,3]
[404564502,1770295842919,-500.0,0.00017989,3]
[404564503,1770295842929,-500.0,0.00017989,3]
[404564504,1770295842938,-200.0,0.00017989,3]
[404564505,1770295842948,-500.0,0.00017989,3]
[404564506,1770295842957,-200.0,0.00017989,3]
[404564507,1770295842967,-200.0,0.00017989,3]
[404564508,1770295843144,-200.0,0.00017989,3]
[404564509,1770295843157,-200.0,0.00017989,3]
[404564510,1770295843167,-578.20924308,0.00017989,3]
[404564511,1770295843177,-200.0,0.00017989,3]
[404564512,1770295843187,-599.60298507,0.00017989,3]
[404564513,1770295843197,-200.0,0.00017989,3]
[404564514,1770295843206,-621.78829552,0.00017989,3]
[404564515,1770295843217,-200.0,0.00017989,3]
[404564516,1770295843226,-644.79446246,0.00017989,3]
[404564517,1770295843236,-200.0,0.00017989,3]
[404564518,1770295843245,-668.65185757,0.00017989,3]
[404564519,1770295843258,-200.0,0.00017989,3]
[404564520,1770295843268,-693.3919763,0.00017989,3]
[404564521,1770295843277,-200.0,0.00017989,3]
[404564522,1770295843287,-719.04747942,0.00017989,3]
[404564523,1770295843296,-200.0,0.00017989,3]
[404564524,1770295843306,-745.65223616,0.00017989,3]
[404564525,1770295843316,-200.0,0.00017989,3]
[404564526,1770295843325,-773.2413689,0.00017989,3]
[404564527,1770295843335,-200.0,0.00017989,3]
[404564528,1770295843344,-801.85129955,0.00017989,3]
[404564529,1770295843354,-200.0,0.00017989,3]
[404564530,1770295843363,-200.0,0.00017989,3]
[404564531,1770295843372,-200.0,0.00017989,3]
[404564532,1770295843382,-200.0,0.00017989,3]
[404564533,1770295843392,-200.0,0.00017989,3]
[404564534,1770295843401,-200.0,0.00017989,3]
[404564535,1770295843410,-209.40437684,0.00017989,3]
[404564536,1770295843419,-217.15233878,0.00017989,3]
[404564537,1770295843429,-225.18697532,0.00017989,3]
[404564538,1770295843438,-233.51889341,0.00017989,3]
[404564539,1770295843451,-242.15909246,0.00017989,3]
[404564540,1770295843462,-251.11897888,0.00017989,3]
[404564541,1770295843471,-260.4103811,0.00017989,3]
[404564542,1770295843481,-500.0,0.00017989,3]
[404564543,1770295843491,-270.0455652,0.00017989,3]
[404564544,1770295843505,-512.54322178,0.00017989,3]
[404564545,1770295843515,-280.03725112,0.00017989,3]
[404564546,1770295843525,-290.39862941,0.00017989,3]
[404564547,1770295843536,-301.1433787,0.00017989,3]
[404564548,1770295843545,-154.5345725,0.0001799,2]
[404564549,1770295843555,-300.0,0.00017999,2]
[404564550,1770295843565,-300.0,0.00017999,2]
[404564551,1770295843575,-900.0,0.00017999,3]
[404564552,1770295843584,-300.0,0.00017999,2]
[404564553,1770295843594,-778.44145262,0.00017999,2]
[404564554,1770295843603,-300.0,0.00017999,2]
[404564555,1770295843613,-666.0,0.00017999,2]
[404564556,1770295843624,-300.0,0.00017999,2]
[404564557,1770295843633,-666.0,0.00017999,2]
[404564559,1770295843643,-300.0,0.00017999,2]
[404564560,1770295843654,-150.0,0.00017999,2]
[404564561,1770295843664,-150.0,0.00017999,2]
[404564562,1770295843674,-231.00018382,0.00017999,2]
[404564563,1770295843683,-515.45006417,0.00018,2]
[404564564,1770295843693,-284.80146065,0.00018,2]
[404564565,1770295843702,-2947992.35622216,0.00018,2]
[404564567,1770295843721,-112514.00469439,0.00018,2]
[404564568,1770295843730,-1637.35811999,0.00018,2]
[404564573,1770295843946,-3647.33650689,0.00015928,2]
[404564574,1770295843969,-1392.10538075,0.00015928,2]
[404564575,1770295843992,-420.70797009,0.00015928,2]
[404564576,1770295844007,-168.99991845,0.00015928,2]
[404564577,1770295844016,-178.10403201,0.0001731,2]
[404564578,1770295844029,-412.8989822,0.0001731,2]
[404564579,1770295844041,-761.28598579,0.0001731,2]
[404564580,1770295844050,-7087.82103296,0.000179,2]
[404564581,1770295844060,-594182.29578466,0.00018,2]
[404564582,1770295844070,-441675.18413681,0.00018,2]
[404564583,1770295844079,-4748122.74725385,0.00018,2]
[404564584,1770295844736,-2400.57786469,0.00018,2]
[404564585,1770295844750,-566.35190804,0.00018,2]
[404564594,1770295846072,-699.595,0.00016914,2]
[404564595,1770295846085,-4929.55477618,0.00016914,2]
[404564596,1770295846095,-2466.995,0.0001731,2]
[404564597,1770295846104,-193.2321845,0.00018,2]
[404564598,1770295846343,-186676.80255594,0.00018,2]
[404564602,1770295846374,-7752.38852294,0.00018,2]
[404564603,1770295846387,-558.6129566,0.00018,2]
[404564607,1770295846763,-293.47590332,0.00018,2]
[404564613,1770295948337,-168.0,0.00021224,120]
[404564614,1770295948362,-169.0,0.00021224,120]
[404564615,1770295948384,-169.0,0.00021224,120]
[404564616,1770296013012,-2500.0,8.754e-05,2]
[404564617,1770296018354,2500.0,8.656e-05,2]
[404564618,1770296104758,170.0,0.00020566,120]
[404564619,1770296241262,152.0,0.00013897,7]
[404564620,1770296344838,-152.0,0.00012601,4]
[404564621,1770296344862,-152.0,0.00013033,5]
[404564622,1770296362761,-152.0,0.00013465,6]
[404564623,1770296363010,-152.0,0.00014329,8]
[404564624,1770296375638,-736.86928972,0.00010647,2]
[404564625,1770296375664,-250.0,0.00010747,2]
[404564626,1770296375688,-2272.09378724,0.00010784,2]
[404564627,1770296375711,-300.0,0.00010989,2]
[404564628,1770296375733,-33.03692304,0.0001099,2]
[404564719,1770297032003,-491.24619314,0.00010889,2]
[404564720,1770297032014,-450.0,0.00010889,2]
[404564721,1770297032024,-73.07310272,0.00010906,2]
[404564722,1770297032036,-981.22689728,0.00010906,2]
[404564723,1770297032046,-200.0,0.00010985,2]
[404564724,1770297032057,-195.0,0.00010989,2]
[404564725,1770297032067,-250.0,0.00010989,2]
[404564726,1770297032077,-294.2,0.00011,2]
[404564727,1770297032087,-11.00902335,0.00011232,2]
[404564728,1770297032107,-1188.99097665,0.00011232,2]
[404564729,1770297032117,-4753.02,0.00011233,2]
[404564730,1770297032127,-491.24619313,0.00011358,2]
[404564731,1770297032137,-224.47,0.00011491,2]
[404564732,1770297032147,-1100.0,0.000116,4]
[404564733,1770297032159,-262.0,0.00011651,2]
[404564734,1770297032175,-300.0,0.00011651,2]
[404564735,1770297032185,-300.0,0.00011652,2]
[404564737,1770297032195,-675.88,0.00011653,2]
[404564739,1770297032205,-191.0,0.00011698,2]
[404564741,1770297032216,-1200.0,0.00011699,2]
[404564743,1770297032225,-2200.0,0.000117,4]
[404564745,1770297032235,-1562.122,0.00011786,2]
[404564747,1770297032245,-150.384,0.00011786,2]
[404564750,1770297032255,-3300.0,0.000118,4]
[404564752,1770297032265,-2232.94646844,0.00011826,2]
[404564754,1770297032276,-153.24960567,0.00011826,2]
[404564756,1770297032286,-1855.27100562,0.00011826,2]
[404564758,1770297032296,-3568.22351028,0.00011826,2]
[404564760,1770297032308,-3519.59752268,0.00011826,2]
[404564762,1770297032318,-491.24619313,0.00011826,2]
[404564764,1770297032328,-251.3953049,0.00011899,2]
[404564766,1770297032338,-4400.0,0.000119,4]
[404564768,1770297032348,-154.5345725,0.00011916,2]
[404564771,1770297032358,-879.22,0.00011919,2]
[404564773,1770297032368,-276.0926,0.00011925,2]
[404564775,1770297032377,-1227.41463026,0.00011925,3]
[404564777,1770297032387,-1227.41463026,0.00011925,3]
[404564779,1770297032397,-919.06787259,0.00011925,3]
[404564781,1770297032408,-85.18046127,0.00011925,3]
[404564783,1770297032418,-150.0,0.00011925,2]
[404564785,1770297032433,-1108.03608936,0.00011925,2]
[404564787,1770297032443,-1108.03608936,0.00011925,2]
[404564789,1770297032453,-1108.03608936,0.00011925,2]
[404564792,1770297032465,-1108.03608936,0.00011925,2]
[404564793,1770297032475,-1108.03608936,0.00011925,2]
[404564795,1770297032484,-1108.03608936,0.00011925,2]
[404564797,1770297032494,-1108.03608936,0.00011925,2]
[404564799,1770297032504,-1108.03608936,0.00011925,2]
[404564802,1770297032514,-1108.03608936,0.00011925,2]
[404564804,1770297032523,-1108.03608936,0.00011925,2]
[404564806,1770297032533,-1108.03608936,0.00011925,2]
[404564808,1770297032543,-1108.03608936,0.00011925,2]
[404564809,1770297032552,-1108.03608936,0.00011925,2]
[404564810,1770297032562,-1108.03608936,0.00011925,2]
[404564811,1770297032579,-1108.03608936,0.00011925,2]
[404564812,1770297032791,-1108.03608936,0.00011925,2]
[404564813,1770297032824,-1108.03608936,0.00011925,2]
[404564814,1770297032834,-1108.03608936,0.00011925,2]
[404564815,1770297032845,-1108.03608936,0.00011925,2]
[404564816,1770297032855,-1108.03608936,0.00011925,2]
[404564817,1770297032864,-1108.03608936,0.00011925,2]
[404564818,1770297032875,-1108.03608936,0.00011925,2]
[404564819,1770297032885,-1108.03608936,0.00011925,2]
[404564820,1770297032895,-1108.03608936,0.00011925,2]
[404564821,1770297032905,-1108.03608936,0.00011925,2]
[404564822,1770297032915,-1108.03608936,0.00011925,2]
[404564823,1770297032926,-1108.03608936,0.00011925,2]
[404564824,1770297032936,-1108.03608936,0.00011925,2]
[404564825,1770297032946,-1108.03608936,0.00011925,2]
[404564826,1770297032956,-1108.03608936,0.00011925,2]
[404564827,1770297032967,-1108.03608936,0.00011925,2]
[404564828,1770297032977,-1108.03608936,0.00011925,2]
[404564829,1770297032987,-1108.03608936,0.00011925,2]
[404564830,1770297032996,-1108.03608936,0.00011925,2]
[404564831,1770297033006,-1108.03608936,0.00011925,2]
[404564832,1770297033015,-1108.03608936,0.00011925,2]
[404564833,1770297033025,-1108.03608936,0.00011925,2]
[404564834,1770297033035,-1108.03608936,0.00011925,2]
[404564835,1770297033044,-1143.21183825,0.00011925,2]
[404564836,1770297033054,-1143.21183825,0.00011925,2]
[404564837,1770297033064,-1143.21183825,0.00011925,2]
[404564838,1770297033074,-1143.21183825,0.00011925,2]
[404564839,1770297033084,-1143.21183825,0.00011925,2]
[404564840,1770297033094,-1143.21183825,0.00011925,2]
[404564841,1770297033104,-469.54956096,0.00011925,2]
[404564842,1770297033113,-1143.21183822,0.00011925,2]
[404564843,1770297033123,-410.72,0.00011926,2]
[404564844,1770297033132,-2980.38,0.00011926,2]
[404564845,1770297033142,-299.99,0.00011926,2]
[404564846,1770297033152,-4121.603,0.00011926,2]
[404564847,1770297033162,-150.99,0.00011926,2]
[404564848,1770297033175,-3186.13,0.00011926,2]
[404564849,1770297033184,-3307.45,0.00011926,2]
[404564850,1770297033194,-150.99,0.00011926,2]
[404564851,1770297033204,-57077.54375303,0.00011926,2]
[404564852,1770297033217,-79655.30670232,0.00011926,2]
[404564853,1770297033246,-3794.84900764,0.00011926,2]
[404564854,1770297038099,-6196.34207903,0.00011926,2]
[404564855,1770297038157,-1477.30590284,0.00011926,2]
[404564856,1770297038170,-2259.8128437,0.00011926,2]
[404564857,1770297038215,-1160.51832203,0.00011926,2]
[404564858,1770297038228,-3044084.23213088,0.00011926,2]
[404564859,1770297038304,-181.89617092,0.00011926,2]
[404564860,1770297038316,-16972.94042967,0.00011926,2]
[404564861,1770297038328,-3753.19685657,0.00011926,2]
[404564862,1770297038340,-904.82,0.00011926,2]
[404564863,1770297038389,-94.07407357,0.00011926,2]
[404564864,1770297038411,-1777.0,0.00011926,2]
[404564925,1770297040120,-29545.60862359,0.00011926,2]
[404564926,1770297040132,-1022.86776253,0.00011926,2]
[404564927,1770297040145,-1386.58322511,0.00011926,2]
[404564928,1770297040180,-2633.070001,0.00011926,2]
[404564929,1770297040336,-246022.03211557,0.00011926,2]
[404564930,1770297040346,-2500.0,0.00011926,2]
[404564931,1770297040356,-499.99,0.00011975,2]
[404564932,1770297040366,-4999.99,0.00011975,2]
[404564933,1770297040376,-9999.99,0.00011975,2]
[404564934,1770297040385,-195.0,0.00011978,2]
[404564935,1770297040395,-195.0,0.00011978,2]
[404564936,1770297040405,-151.0,0.00012019,2]
[404564937,1770297040415,-151.0,0.00012019,2]
[404564938,1770297040426,-151.0,0.00012019,2]
[404564939,1770297040436,-500.0,0.00012019,2]
[404564940,1770297040446,-151.0,0.00012019,2]
[404564941,1770297040456,-151.0,0.00012019,2]
[404564942,1770297040466,-151.0,0.00012019,2]
[404564943,1770297040476,-151.0,0.00012019,2]
[404564944,1770297040486,-500.0,0.00012019,2]
[404564945,1770297040496,-151.0,0.00012019,2]
[404564946,1770297040506,-151.0,0.00012019,2]
[404564947,1770297040516,-151.0,0.00012019,2]
[404564948,1770297040526,-151.0,0.00012019,2]
[404564949,1770297040536,-151.0,0.00012019,2]
[404564950,1770297040546,-151.0,0.00012019,2]
[404564951,1770297040557,-151.0,0.00012019,2]
[404564952,1770297040567,-151.0,0.00012019,2]
[404564953,1770297040577,-500.0,0.00012019,2]
[404564954,1770297040587,-151.0,0.00012019,2]
[404564955,1770297040597,-500.0,0.00012019,2]
[404564956,1770297040607,-500.0,0.00012019,2]
[404564957,1770297040616,-151.0,0.00012019,2]
[404564958,1770297040626,-500.0,0.00012019,2]
[404564959,1770297040636,-151.0,0.00012019,2]
[404564960,1770297040646,-500.0,0.00012019,2]
[404564961,1770297040656,-500.0,0.00012019,2]
[404564962,1770297040667,-151.0,0.00012019,2]
[404564963,1770297040676,-500.0,0.00012019,2]
[404564964,1770297040686,-500.0,0.00012019,2]
[404564965,1770297040696,-500.0,0.00012019,2]
[404564966,1770297040706,-500.0,0.00012019,2]
[404564967,1770297040716,-151.0,0.00012019,2]
[404564968,1770297040726,-500.0,0.00012019,2]
[404564969,1770297040735,-500.0,0.00012019,2]
[404564970,1770297040745,-500.0,0.00012019,2]
[404564971,1770297040755,-500.0,0.00012019,2]
[404564972,1770297040770,-200.0,0.00012019,2]
[404564973,1770297040780,-151.0,0.00012019,2]
[404564974,1770297040790,-500.0,0.00012019,2]
[404564975,1770297040801,-151.0,0.00012019,2]
[404564976,1770297040814,-500.0,0.00012019,2]
[404564977,1770297040825,-151.0,0.00012019,2]
[404564978,1770297040835,-500.0,0.00012019,2]
[404564979,1770297040845,-151.0,0.00012019,2]
[404564980,1770297040856,-500.0,0.00012019,2]
[404564981,1770297040866,-151.0,0.00012019,2]
[404564982,1770297040876,-500.0,0.00012019,2]
[404564984,1770297041092,-151.0,0.00012019,2]
[404564988,1770297041151,-500.0,0.00012019,2]
[404564990,1770297041161,-151.0,0.00012019,2]
[404564991,1770297041171,-500.0,0.00012019,2]
[404564992,1770297041182,-151.0,0.00012019,2]
[404564993,1770297041191,-500.0,0.00012019,2]
[404564994,1770297041200,-151.0,0.00012019,2]
[404564996,1770297041210,-151.0,0.00012019,2]
[404564997,1770297041220,-151.0,0.00012019,2]
[404564998,1770297041230,-200.0,0.00012019,2]
[404564999,1770297041243,-1004.24833384,0.00012025,3]
[404565000,1770297041254,-500.0,0.00012025,2]
[404565001,1770297041263,-500.0,0.00012025,2]
[404565002,1770297041273,-500.0,0.00012025,2]
[404565003,1770297041283,-550.0,0.00012025,2]
[404565004,1770297041293,-500.0,0.00012025,2]
[404565005,1770297041303,-500.0,0.00012025,2]
[404565006,1770297041314,-500.0,0.00012025,2]
[404565007,1770297041324,-500.0,0.00012025,2]
[404565008,1770297041334,-500.0,0.00012025,2]
[404565009,1770297041344,-500.0,0.00012025,2]
[404565010,1770297041354,-500.0,0.00012025,2]
[404565011,1770297041364,-500.0,0.00012025,2]
[404565012,1770297041374,-500.0,0.00012025,2]
[404565013,1770297041383,-500.0,0.00012025,2]
[404565014,1770297041393,-500.0,0.00012025,2]
[404565015,1770297041403,-500.0,0.00012025,2]
[404565016,1770297041413,-500.0,0.00012025,2]
[404565017,1770297041423,-500.0,0.00012025,2]
[404565018,1770297041438,-500.0,0.00012025,2]
[404565019,1770297041447,-500.0,0.00012025,2]
[404565020,1770297041457,-500.0,0.00012025,2]
[404565021,1770297041467,-500.0,0.00012025,2]
[404565022,1770297041477,-500.0,0.00012025,2]
[404565023,1770297041487,-500.0,0.00012025,2]
[404565024,1770297041496,-500.0,0.00012025,2]
[404565025,1770297041506,-500.0,0.00012025,2]
[404565026,1770297041517,-500.0,0.00012025,2]
[404565027,1770297041527,-500.0,0.00012025,2]
[404565028,1770297041536,-500.0,0.00012025,2]
[404565029,1770297041546,-324.23441471,0.00012025,2]
[404565030,1770297041555,-500.0,0.00012025,2]
[404565031,1770297041565,-500.0,0.00012025,2]
[404565032,1770297041574,-500.0,0.00012025,2]
[404565033,1770297041584,-500.0,0.00012025,2]
[404565034,1770297041593,-500.0,0.00012025,2]
[404565035,1770297041603,-500.0,0.00012025,2]
[404565036,1770297041613,-500.0,0.00012025,2]
[404565037,1770297041625,-500.0,0.00012025,2]
[404565038,1770297041635,-500.0,0.00012025,2]
[404565039,1770297041645,-500.0,0.00012025,2]
[404565040,1770297041655,-500.0,0.00012025,2]
[404565041,1770297041665,-500.0,0.00012025,2]
[404565042,1770297041677,-500.0,0.00012025,2]
[404565043,1770297041687,-500.0,0.00012025,2]
[404565044,1770297041698,-500.0,0.00012025,2]
[404565045,1770297041708,-5907.08,0.00012025,2]
[404565046,1770297041718,-500.0,0.00012025,2]
[404565047,1770297041728,-180.67372283,0.00012025,2]
[404565048,1770297041739,-500.0,0.00012025,2]
[404565049,1770297041748,-250.0,0.00012088,2]
[404565050,1770297041758,-250.0,0.00012088,2]
[404565051,1770297041768,-195.0,0.00012088,2]
[404565052,1770297041778,-4966.96307696,0.00012088,2]
[404565053,1770297041788,-152.0,0.00012169,3]
[404565054,1770297041799,-1680.0,0.00012355,2]
[404565055,1770297041814,-150.0,0.00012411,2]
[404565056,1770297041824,-500.0,0.00012567,2]
[404565057,1770297041834,-200.0,0.00012567,2]
[404565058,1770297041844,-200.0,0.00012567,2]
[404565059,1770297041855,-153.24960566,0.00012585,2]
[404565060,1770297041865,-1855.2710056,0.00012694,2]
[404565061,1770297041876,-420.0,0.00012795,2]
[404565062,1770297041886,-300.0,0.00012795,2]
[404565063,1770297041896,-255.0,0.00012998,2]
[404565064,1770297041905,-500.0,0.00013115,2]
[404565065,1770297041916,-200.0,0.00013115,2]
[404565066,1770297041927,-200.0,0.00013115,2]
[404565067,1770297041937,-153.24960566,0.00013345,2]
[404565068,1770297041947,-15362.84,0.00013349,2]
[404565069,1770297041956,-1855.2710056,0.00013561,2]
[404565070,1770297041965,-720.0,0.00013591,2]
[404565071,1770297041975,-500.0,0.00013663,2]
[404565072,1770297041985,-200.0,0.00013663,2]
[404565073,1770297041994,-200.0,0.00013663,2]
[404565074,1770297042003,-257.1490003,0.00013698,2]
[404565075,1770297042028,-500.0,0.00013698,2]
[404565076,1770297042040,-200.0,0.00013699,2]
[404565077,1770297042050,-16500.42,0.000137,2]
[404565078,1770297042068,-16500.42,0.000137,2]
[404565079,1770297042079,-10549.8,0.00013724,2]
[404565080,1770297042090,-500.0,0.00013753,2]
[404565081,1770297042101,-461.0,0.0001383,2]
[404565082,1770297042111,-1000.0,0.00013885,2]
[404565083,1770297042122,-3240.0,0.00013975,2]
[404565084,1770297042133,-587.0,0.00014051,2]
[404565085,1770297042143,-153.24960566,0.00014104,2]
[404565086,1770297042154,-394.0,0.00014167,2]
[404565087,1770297042164,-500.0,0.00014211,2]
[404565088,1770297042175,-200.0,0.00014211,2]
[404565089,1770297042187,-200.0,0.00014211,2]
[404565090,1770297042198,-250.37152364,0.00014388,2]
[404565091,1770297042208,-1855.2710056,0.00014429,2]
[404565092,1770297042218,-500.0,0.00014441,2]
[404565093,1770297042228,-339.49627919,0.00014476,2]
[404565094,1770297042238,-240.66937529,0.00014476,2]
[404565095,1770297042248,-500.0,0.000146,2]
[404565096,1770297042259,-799.2381371,0.000146,2]
[404565097,1770297042269,-621.20778463,0.000146,2]
[404565098,1770297042279,-1272.50606405,0.000146,2]
[404565099,1770297042289,-500.0,0.000146,2]
[404565100,1770297042300,-500.0,0.00014758,2]
[404565101,1770297042310,-500.0,0.00014759,2]
[404565102,1770297042319,-200.0,0.00014759,2]
[404565103,1770297042330,-200.0,0.00014759,2]
[404565104,1770297042340,-152.0,0.00014761,9]
[404565105,1770297042350,-153.24960566,0.00014863,2]
[404565106,1770297042360,-5500.0,0.000149,5]
[404565107,1770297042374,-2232.94646844,0.00015042,2]
[404565108,1770297042385,-240.66937528,0.00015047,2]
[404565109,1770297042395,-160.0,0.00015095,2]
[404565110,1770297042406,-1000.0,0.00015148,2]
[404565111,1770297042416,-363.65272585,0.00015148,2]
[404565112,1770297042892,-636.34727415,0.00015148,2]
[404565113,1770297042901,-152.0,0.00015193,10]
[404565114,1770297042909,-1855.2710056,0.00015297,2]
[404565115,1770297042919,-166.66,0.00015303,2]
[404565116,1770297042934,-502.94499964,0.00015307,2]
[404565117,1770297042944,-200.0,0.00015307,2]
[404565118,1770297042954,-200.0,0.00015307,2]
[404565119,1770297042969,-339.49627916,0.00015332,2]
[404565120,1770297042980,-493.0,0.00015431,2]
[404565121,1770297042990,-152.01739561,0.00015486,2]
[404565122,1770297043000,-500.0,0.00015501,2]
[404565123,1770297043010,-479.436717,0.00015583,7]
[404565124,1770297043019,-240.66937528,0.00015617,2]
[404565125,1770297043029,-153.24960566,0.00015622,2]
[404565126,1770297043040,-152.0,0.00015625,11]
[404565127,1770297043051,-166.66,0.00015625,2]
[404565128,1770297043060,-1500.0,0.00015696,2]
[404565129,1770297043070,-200.0,0.00015855,2]
[404565130,1770297043079,-200.0,0.00015855,2]
[404565131,1770297043089,-1592.82,0.00015867,2]
[404565132,1770297043100,-297.13,0.00015918,2]
[404565133,1770297043110,-166.66,0.00015947,2]
[404565134,1770297043120,-152.0,0.00016057,12]
[404565135,1770297043130,-1855.2710056,0.00016165,2]
[404565136,1770297043140,-339.49627916,0.00016188,2]
[404565137,1770297043150,-240.66937528,0.00016188,2]
[404565138,1770297043160,-1004.24108191,0.00016244,2]
[404565139,1770297043171,-152.01739561,0.00016261,2]
[404565140,1770297043185,-166.66,0.0001627,2]
[404565141,1770297043195,-793.61524672,0.00016377,2]
[404565142,1770297043205,-2094.36319232,0.00016377,2]
[404565143,1770297043216,-3694.70492405,0.00016377,2]
[404565144,1770297043226,-153.24960566,0.00016382,2]
[404565145,1770297043237,-200.0,0.00016403,2]
[404565146,1770297043248,-200.0,0.00016403,2]
[404565147,1770297043258,-152.0,0.00016489,13]
[404565148,1770297043269,-297.13,0.00016515,2]